Cogmind - Beta 13 @@@ ROGUE MODE // 2024.05.08 @ 18:57:58 Player: luckinvolved Result: Self-destructed Performance ------------- Evolutions (2) 1000 Regions Visited (5) 1000 Robots Destroyed (39) 195 Value Destroyed (781) 781 Prototype IDs (3) 60 Alien Tech Used (0) 0 Bonus (385) 385 TOTAL SCORE: 3421 Bonus ------- Follower Combat Kills 85 Aligned with FarCom 300 Cogmind --------- Core Integrity 526/550 Matter 290/300 Energy 224/240 System Corruption 2% Temperature Cool (0) Movement Rolling (135) Ox3 Location -8/Materials Parts ------- > --- POWER (1) -------- Nuclear Core > --- PROPULSION (4) --- Wheel Compact Wheel > --- UTILITY (4) ------ Huge Storage Unit 0b10 Alert Chip > --- WEAPON (2) ------- (None) > --- INVENTORY (25) --- Light Nuclear Core Advanced Treads Improved Heat Sink High-capacity Matter Pod (200) Improved Light Armor Plating Hacking Suite Heavy EM Pulse Gun Small Laser YOLO Cannon Light Assault Rifle Heavy Assault Cannon Field Lobotomy Kit (5) Peak State ------------ > --- POWER ------------ Nuclear Core > --- PROPULSION ------- Wheel Compact Wheel > --- UTILITY ---------- Huge Storage Unit 0b10 Alert Chip > --- WEAPON ----------- YOLO Cannon > --- INVENTORY -------- Light Nuclear Core Advanced Treads Improved Heat Sink High-capacity Matter Pod Improved Light Armor Plating Hacking Suite Heavy EM Pulse Gun Small Laser Light Assault Rifle Field Lobotomy Kit [Rating: 35] Favorites ----------- Power Nuclear Core Engine Ion Engine Power Core Nuclear Core Propulsion Light Treads Treads Light Treads Wheel Wheel Utility Huge Storage Unit Storage Huge Storage Unit Processor 0b10 Alert Chip Weapon Light Assault Rifle Energy Gun Small Laser Energy Cannon YOLO Cannon Ballistic Gun Light Assault Rifle Launcher Grenade Launcher Special Weapon Field Lobotomy Kit Build | -11 -10 -10 -10 -9 -8 ------- Run | Yrd Mat Min Exi Min Mat Slots Evolved 4 | . . . . . 4 Power . | . . . . . . Propulsion 2 | . . . . . 2 Utility 2 | . . . . . 2 Weapon . | . . . . . . Parts Attached 23 | 6 1 8 3 4 1 Power 2 | 1 . 1 . . . Engine 1 | 1 . . . . . Core 1 | . . 1 . . . Reactor . | . . . . . . Propulsion 6 | 2 . 4 . . . Treads 4 | 2 . 2 . . . Leg . | . . . . . . Wheel 2 | . . 2 . . . Hover . | . . . . . . Flight . | . . . . . . Utility 4 | 1 1 1 1 . . Device . | . . . . . . Storage 2 | 1 . 1 . . . Processor 2 | . 1 . 1 . . Hackware . | . . . . . . Protection . | . . . . . . Artifact . | . . . . . . Weapon 11 | 2 . 2 2 4 1 Energy Gun 2 | . . 1 . 1 . Energy Cannon 2 | . . . 1 1 . Ballistic Gun 3 | 2 . . . 1 . Ballistic Cannon . | . . . . . . Launcher 2 | . . 1 . 1 . Special Weapon 2 | . . . 1 . 1 Impact Weapon . | . . . . . . Slashing Weapon . | . . . . . . Piercing Weapon . | . . . . . . Special Melee Weapon . | . . . . . . Unidentified Prototypes 3 | . . . 3 . . Parts Lost 6 | . . 5 . 1 . Power 1 | . . 1 . . . Propulsion 2 | . . 2 . . . Utility . | . . . . . . Weapon 3 | . . 2 . 1 . Highest Loss Streak 4 | . . 4 . 1 . To Critical Strikes . | . . . . . . Average Slot Usage (%) 89 | . 85 98 77 93 53 Engine 6 | . 14 11 . . . Core 7 | . . 2 14 14 9 Treads 12 | . 28 23 . . . Wheel 14 | . . 4 28 28 18 Storage 13 | . 14 14 14 14 9 Processor 10 | . . 12 6 14 9 Energy Gun 6 | . . 9 6 8 . Energy Cannon 2 | . . . . 5 8 Ballistic Gun 11 | . 28 16 . 8 . Launcher 1 | . . 2 6 . . Naked Turns . | . . . . . . Heaviest Build 105 | 13 13 91 91 105 105 Greatest Support 42 | 40 40 42 26 26 26 Greatest Overweight (x) 4 | . . 3 3 4 4 Average Overweight (x) 1 | . . . 3 3 4 Largest Inventory Capacity 25 | 8 8 25 25 25 25 Average Capacity 16 | 5 8 8 25 25 25 Most Carried 14 | 5 7 8 10 11 14 Average Carried 7 | 2 6 7 7 8 10 Final Capacity 25 | 8 8 25 25 25 25 Final Carried 14 | 4 7 5 10 8 14 Class Distribution -------------------- 100% | Mutant Dominant Class ---------------- Mutant | -10/Materials Mutant | -10/Mines Mutant | -10/Exiles Mutant | -9/Mines Mutant | -8/Materials Resources | -11 -10 -10 -10 -9 -8 ----------- Run | Yrd Mat Min Exi Min Mat Matter Collected 670 | 259 21 293 . 97 . Remotely . | . . . . . . Salvage Created 600 | . 90 326 . 37 147 Parts 55 | . 3 26 . 10 16 Haulers Intercepted 1 | . . . . . 1 Recyclers Shooed . | . . . . . . Parts Field Recycled . | . . . . . . Retrieved Matter . | . . . . . . Parts Self-Destructed . | . . . . . . Prevented . | . . . . . . Kills | -11 -10 -10 -10 -9 -8 ------- Run | Yrd Mat Min Exi Min Mat Combat Hostiles Destroyed 32 | . 2 16 . 5 9 Guns 8 | . 2 6 . . . Cannons 3 | . . . . . 3 AOE 19 | . . 10 . 4 5 Classes Destroyed 8 | . 1 3 . . 4 Worker 2 | . . 1 . 1 . Tunneler 2 | . . 2 . . . Hauler 1 | . . . . . 1 Operator 1 | . . . . . 1 Watcher 1 | . . . . . 1 Swarmer 19 | . . 6 . 5 8 Grunt 12 | . 2 10 . . . Sentry 1 | . . . . . 1 Best Kill Streak 10 | . 2 10 . 4 8 Combat Bots Only 7 | . 2 7 . 4 5 Max Kills in Single Turn 4 | . 1 4 . 3 3 Gunslinging . | . . . . . . Exploded 3 | . . 3 . 2 2 Melee . | . . . . . . Uniques/NPCs Destroyed . | . . . . . . Combat | -11 -10 -10 -10 -9 -8 -------- Run | Yrd Mat Min Exi Min Mat Hostile Shots Fired 146 | . 8 115 . 11 12 Missed 37 | . 1 30 . 3 3 Damage Taken 1233 | . 104 996 . 62 71 Core 183 | . . 142 . 17 24 Absorbed by Shields . | . . . . . . Core Remaining (%) 68 | 100 . . . 36 . Volleys Fired 64 | . 9 46 . 3 6 Largest 2 | . 2 2 . 1 1 Hottest 100 | . 40 60 . 100 100 Shots Fired 109 | . 18 82 . 3 6 Gun 92 | . 18 74 . . . Cannon 9 | . . . . 3 6 Launcher 8 | . . 8 . . . Special . | . . . . . . Kinetic 83 | . 18 65 . . . Thermal 18 | . . 9 . 3 6 Explosive 8 | . . 8 . . . Electromagnetic . | . . . . . . Robot Hit Streak 12 | . 7 12 . 2 5 Robot Miss Streak 5 | . 3 5 . . 1 Penetration Max . | . . . . . . Secondary Targets 1 | . . 1 . . . Max Gunslinging Chain 1 | . . 1 . . . Shots Hit Robots 66 | . 10 52 . 1 3 Core Hits 51 | . 6 33 . 5 7 Critical Kills 2 | . . . . 1 1 Critical Parts Destroyed . | . . . . . . Critical Strikes 2 | . . . . 1 1 Meltdown 2 | . . . . 1 1 Melee Attacks . | . . . . . . Impact . | . . . . . . Slashing . | . . . . . . Piercing . | . . . . . . Sneak Attacks . | . . . . . . Combat Hostiles . | . . . . . . Follow-up Attacks . | . . . . . . Damage Inflicted 3013 | . 101 1361 . 458 1093 Guns 589 | . 101 488 . . . Cannons 788 | . . . . 185 603 Explosions 1628 | . . 865 . 273 490 Melee . | . . . . . . Ramming 8 | . . 8 . . . Kinetic 534 | . 101 433 . . . Thermal 1606 | . . 55 . 458 1093 Explosive 865 | . . 865 . . . Electromagnetic . | . . . . . . Impact . | . . . . . . Slashing . | . . . . . . Piercing . | . . . . . . Highest Corruption 2 | . . . . . 2 Average Corruption 1 | . . . . . 1 Corruption Purged . | . . . . . . Corruption Blocked . | . . . . . . Overload Shots . | . . . . . . Overflow Damage 406 | . . 44 . 12 350 Projectiles 289 | . . . . 6 283 Explosions 117 | . . 44 . 6 67 Melee . | . . . . . . Knockbacks 1 | . . 1 . . . Impact 1 | . . 1 . . . Kinetic . | . . . . . . Secondary . | . . . . . . Self-Inflicted Damage 44 | . . 44 . . . Shots 1 | . . 1 . . . Rammed 2 | . . 2 . . . Targets Rammed 2 | . . 2 . . . Kicked . | . . . . . . Crushed . | . . . . . . Highest Temperature 112 | . 9 112 . 56 12 Average Temperature 20 | . 8 26 . 24 4 Received Heat Transfer 537 | . 57 480 . . . Siege Activations . | . . . . . . Robots Corrupted . | . . . . . . Combat Hostiles . | . . . . . . Parts Fried . | . . . . . . Impact Corruptions . | . . . . . . Robots Melted 2 | . . . . 1 1 Combat Hostiles 2 | . . . . 1 1 Parts Melted 4 | . . . . 2 2 Heat Transferred 1325 | . . 125 . 400 800 Parts Sabotaged . | . . . . . . Parts Stolen . | . . . . . . Parts Stripped . | . . . . . . Power Chain Reactions . | . . . . . . Alert | -11 -10 -10 -10 -9 -8 ------- Run | Yrd Mat Min Exi Min Mat Peak Influence 321 | . 92 200 . 139 321 Initial 53 | . . 35 . . 53 Average 75 | . 62 77 . 47 224 Maximum Alert Level 1 | . . 1 . . 1 Low Security (%) 91 | 100 100 91 . 100 41 Level 1 8 | . . 8 . . 58 Level 2 . | . . . . . . Level 3 . | . . . . . . Level 4 . | . . . . . . Level 5 . | . . . . . . High Security . | . . . . . . Max Security . | . . . . . . Squads Dispatched 2 | . . 2 . . . Investigation 1 | . . 1 . . . Extermination . | . . . . . . Reinforcement . | . . . . . . Assault 1 | . . 1 . . . Garrison . | . . . . . . Intercept . | . . . . . . Searches Triggered . | . . . . . . Construction Impeded . | . . . . . . Haulers Reinforced . | . . . . . . Active Scanning Responses . | . . . . . . Cargo Convoy Interrupts . | . . . . . . Stealth | -11 -10 -10 -10 -9 -8 --------- Run | Yrd Mat Min Exi Min Mat Distress Signals 2 | . . . . 1 1 Communications Jammed . | . . . . . . Distress Signals . | . . . . . . Times Spotted 40 | . 4 22 . 5 9 Peak Tracking Total 8 | . 2 8 . 4 6 Tactical Retreats 2 | . . 2 . . . Traps | -11 -10 -10 -10 -9 -8 ------- Run | Yrd Mat Min Exi Min Mat Traps Triggered 2 | . . . . . 2 Indirectly . | . . . . . . Trap Hack Attempts . | . . . . . . Triggered . | . . . . . . Disarmed . | . . . . . . Reprogrammed . | . . . . . . Reused . | . . . . . . Traps Extracted . | . . . . . . Installed . | . . . . . . Triggered . | . . . . . . Machines | -11 -10 -10 -10 -9 -8 ---------- Run | Yrd Mat Min Exi Min Mat Machines Disabled 4 | . . . . 2 2 Max in Single Turn 2 | . . . . 2 2 Machines Repaired . | . . . . . . Machines Dismantled . | . . . . . . Machines Sabotaged . | . . . . . . Overloaded Fab Kills . | . . . . . . Hacking | -11 -10 -10 -10 -9 -8 --------- Run | Yrd Mat Min Exi Min Mat Machines Accessed 7 | . 4 2 . . 1 Terminals 6 | . 4 1 . . 1 Fabricators . | . . . . . . Repair Stations . | . . . . . . Recycling Units . | . . . . . . Scanalyzers . | . . . . . . Garrison Access . | . . . . . . Total Hacks 20 | . 14 4 . . 2 Successful 8 | . 6 1 . . 1 Failed 12 | . 8 3 . . 1 Catastrophic 4 | . 2 2 . . . Database Lockouts . | . . . . . . Manual 11 | . 10 . 1 . . Terminals 19 | . 14 3 . . 2 Fabricators . | . . . . . . Repair Stations . | . . . . . . Recycling Units . | . . . . . . Scanalyzers . | . . . . . . Garrison Access . | . . . . . . Terminal Hacks 4 | . 2 1 . . 1 Open Door 1 | . . 1 . . . Branch Access Points 1 | . 1 . . . . Zone Layout 2 | . 1 . . . 1 Fabricator Hacks . | . . . . . . Repair Station Hacks . | . . . . . . Recycling Unit Hacks . | . . . . . . Scanalyzer . | . . . . . . Garrison Access Hacks . | . . . . . . Unauthorized Hacks 4 | . 4 . . . . Terminals 4 | . 4 . . . . Botnet 4 | . 4 . . . . Fabricators . | . . . . . . Repair Stations . | . . . . . . Recycling Units . | . . . . . . Scanalyzers . | . . . . . . Garrison Access . | . . . . . . Data Cores Recovered . | . . . . . . Used . | . . . . . . Hacking Detections 4 | . 2 1 . . 1 Full Trace Events 1 | . 1 . . . . Feedback Events . | . . . . . . Feedback Blocked . | . . . . . . Robot Schematics Acquired . | . . . . . . Robots Built . | . . . . . . Authchips . | . . . . . . Time . | . . . . . . Total Robot Build Rating . | . . . . . . Part Schematics Acquired . | . . . . . . Parts Built . | . . . . . . Authchips . | . . . . . . Time . | . . . . . . Total Part Build Rating . | . . . . . . Parts Repaired . | . . . . . . Time . | . . . . . . Parts Recycled . | . . . . . . Recycled Matter . | . . . . . . Retrieved Matter . | . . . . . . Retrieved Components . | . . . . . . Parts Scanalyzed . | . . . . . . Part Schematics Acquired . | . . . . . . Parts Damaged . | . . . . . . Bothacking | -11 -10 -10 -10 -9 -8 ------------ Run | Yrd Mat Min Exi Min Mat Used RIF Installer . | . . . . . . Robots Hacked . | . . . . . . Non-combat . | . . . . . . Combat . | . . . . . . Robot Hacks Applied . | . . . . . . Relay Couplers Released . | . . . . . . Fabnet Peak Effective % . | . . . . . . Robots Rewired . | . . . . . . Allies Hacked . | . . . . . . Hacks Repelled . | . . . . . . Allies | -11 -10 -10 -10 -9 -8 -------- Run | Yrd Mat Min Exi Min Mat Total Allies 6 | . . 6 . . . Largest Group 4 | . . 4 2 . . Highest-Rated Group 71 | . . 71 46 . . Highest-Rated Ally 31 | . . 31 31 . . Total Orders . | . . . . . . Ally Attacks 15 | . . 15 . . . Total Damage 166 | . . 166 . . . Kills 3 | . . 3 . . . Allies Corrupted 1 | . . 1 . . . Allies Melted . | . . . . . . Intel | -11 -10 -10 -10 -9 -8 ------- Run | Yrd Mat Min Exi Min Mat Robot Analysis Total . | . . . . . . Derelict Logs Recovered 4 | . . 2 . 2 . Drone Launches . | . . . . . . Drone Recoveries . | . . . . . . Exploration | -11 -10 -10 -10 -9 -8 ------------- Run | Yrd Mat Min Exi Min Mat Turns Passed 2490 | 71 275 939 316 716 173 Spaces Moved 1418 | 39 151 505 230 406 87 Core 3 | 3 . . . . . Treads 581 | 36 151 394 . . . Legs . | . . . . . . Wheels 834 | . . 111 230 406 87 Hover . | . . . . . . Flight . | . . . . . . Fastest Speed 50 | 50 160 90 135 135 150 Average Speed 143 | 151 160 142 135 141 150 Slowest Speed 160 | 160 160 160 135 150 150 Overloaded Moves . | . . . . . . Propulsion Burnouts . | . . . . . . Robots Hopped . | . . . . . . Cave-ins Triggered . | . . . . . . Exploration Rate (%) 44 | 4 38 89 59 65 13 Regions Visited 5 Branch Regions 3 Pre-discovered Areas 1 | . . 1 . . . Known Exits Taken 2 | . 1 . . 1 . Unknown Exits Taken 3 | 1 . 1 1 . . Scrap Searched 2 | . . 1 . 1 . Spaces Dug . | . . . . . . Terrain Destroyed 131 | . . 40 . 30 61 Melee . | . . . . . . Projectile 1 | . . . . . 1 AOE 130 | . . 40 . 30 60 Terrain Rammed . | . . . . . . Walls Destroyed . | . . . . . . Machines Disabled . | . . . . . . Actions | -11 -10 -10 -10 -9 -8 --------- Run | Yrd Mat Min Exi Min Mat Total 1754 | 49 168 649 236 540 112 Wait 224 | . 5 80 . 126 13 Move 1413 | 38 150 504 229 405 87 Hop . | . . . . . . Pick Up 16 | 5 3 4 . 1 3 Fast Attach 10 | 5 1 1 3 . . Attach 11 | 1 . 6 . 3 1 Detach 8 | . . 1 4 1 2 Swap 2 | . . 1 . 1 . Drop 4 | . . 4 . . . Fire 64 | . 9 46 . 3 6 Melee . | . . . . . . Ram 2 | . . 2 . . . Kick . | . . . . . . Crush . | . . . . . . Escape Stasis . | . . . . . . Rewire . | . . . . . . Trap . | . . . . . . Miscellaneous . | . . . . . . Route ------- -11/Scrapyard -10/Materials (discovered 2 exits: *Min x2) -10/Mines (discovered 3 exits: [*Mat] / *Exi / [*Sub]) -10/Exiles -9/Mines (discovered 2 exits: *Mat x2) -8/Materials (discovered 2 exits: Fac x2) History --------- Turn | Location | Event 2 | -11/Scrapyard | Discovered new exit (range 16) 72 | -11/Scrapyard | Entered Materials 214 | -10/Materials | Discovered new exit (range 12) 218 | -10/Materials | Identified exit to Mines 311 | -10/Materials | Build established: Mutant 347 | -10/Materials | Entered Mines 498 | -10/Mines | Discovered new exit (range 9) 610 | -10/Mines | Met a Derelict shopkeep closing up shop 729 | -10/Mines | Discovered new exit (range 3) 812 | -10/Mines | Assisted by bots powering up and referring to "LRC-V3" 970 | -10/Mines | Found a hidden stash of uninstalled traps 990 | -10/Mines | Met a Derelict testing a Signal Generator 1046 | -10/Mines | Excavation squad dispatched 1046 | -10/Mines | A large section of the Mines collapsed 1129 | -10/Mines | Core integrity fell below 50% 1154 | -10/Mines | Lost 4 parts (1p2n1w) 1155 | -10/Mines | Learned 2 Materials zone layouts 1165 | -10/Mines | Destroyed 7 combat bots 1165 | -10/Mines | Learned location of Zion (-7) 1279 | -10/Mines | Deemed a non-threat by the Exiles lab entrance 1280 | -10/Mines | Discovered new exit (range 5) 1286 | -10/Mines | Entered Exiles 1286 | -10/Exiles | Accompanied by 2 allies 1316 | -10/Exiles | Led the pair of lost Derelicts to a safe place 1319 | -10/Exiles | Met 8R-AWN 1343 | -10/Exiles | Met EX-HEX 1381 | -10/Exiles | Met EX-BIN 1399 | -10/Exiles | Aligned with FarCom system 1400 | -10/Exiles | Given EX-Vault access code 1431 | -10/Exiles | Opened EX-Vault 1439 | -10/Exiles | Found Prototype Energy Cannon 1439 | -10/Exiles | Identified YOLO Cannon 1443 | -10/Exiles | Found Prototype Special Weapon 1443 | -10/Exiles | Identified Field Lobotomy Kit 1453 | -10/Exiles | Found Prototype Processor 1453 | -10/Exiles | Identified 0b10 Alert Chip 1482 | -10/Exiles | Warned to stay clear of 0b10 Research branches 1521 | -10/Exiles | Met EX-DEC 1586 | -10/Exiles | Discovered new exit (range 14) 1602 | -10/Exiles | Stole three prototypes: YOLO Cannon, Field Lobotomy Kit, 0b10 Alert Chip 1602 | -10/Exiles | Entered Mines 1607 | -9/Mines | Met a Derelict bent on vengeance 1745 | -9/Mines | Assembled infested the area 1750 | -9/Mines | Assisted by a Guerilla fighting off Assembled 2251 | -9/Mines | Learned 2 Materials zone layouts 2261 | -9/Mines | Discovered new exit (range 15) 2273 | -9/Mines | Identified exit to Materials 2318 | -9/Mines | Entered Materials 2318 | -8/Materials | Evolved 4 slots: Propulsion x2, Utility x2 2319 | -8/Materials | Identified exit to Factory 2491 | -8/Materials | Self-destructed Last Messages --------------- 02412_ Destroyed Lgt. Ion Engine. 02412_ S-10 Pest destroyed. 02415_ U-05 Engineer lays Concrete. 02415_ K-01 Serf collects debris. 02415_ R-06 Scavenger collects Lgt. Armor Plating. 02416_ U-05 Engineer lays Concrete. 02416_ A-02 Transporter destroyed. 02417_ U-05 Engineer builds a Wall. 02421_ U-05 Engineer lays Concrete. 02430_ U-05 Engineer builds a Door. 02432_ R-06 Scavenger collects Ion Engine. 02434_ U-05 Engineer builds a Wall. 02443_ U-05 Engineer lays Concrete. 02444_ U-05 Engineer builds a Wall. 02474_ Triggered Shock Trap. 02474_ The floor emits a surge of raw power. 02474_ System corrupted (+1). 02475_ Triggered Shock Trap. 02475_ The floor emits a surge of raw power. 02475_ System corrupted (+1). Map ----- +----------------------------------------------------+ | ?????????# "????????????????????????????????## | | #######??# Y????????????????????????????????# | | #??# "????????????????????????????????# | | """ #??# #????????????????????????????????# | | """ #??# #????????????????????????###?????# | | """ #??# #??????????????????????### ####### | | #??# #??????????????????????# ## | | #??# #??????????????????????# ## | | #??# #??????????????????????# ### | | #### #??????????????????????# # | | # #??????????????????????# + | | ##+#"" ## ##?????????????????????# """ # | | % ????????????????????# """ ### | | ????????????????????# """ #?# | | ????????????????????# #?# | | T# #/## "##??????????????????????##########?# | | ## " ##??????????????????????????????????# | | # " "#??????????????????????????????????## | | # " "#??????????????????????????????????# | | # " #??????????????????????????????????# | | " ##??????????????????????????????????# | | #?###############???????????????????# | | [! #?# # #???????????????????# | | !! #?#""" # T #?????????????????#### | | ! #?#""" # #?????????????????# | | "#######?#""" # ! @ #?????????????????# | | #???????# [# #?????????????????# | | ! ! ##???????# ?? # #?????????????????# | | " %""###############+####+###?????????????????# | | =! #?????????????????# | | """"### ############+# #?????????????????# | | ?# #??# # #?????????????????# | | """ #[[!!==#??# !#?#?????????????????#### | | """ #[[!!==#??# ] #??????????????????????? | | """ ########??# / #??????????????????????? | | #?????????###########??????????????????????? | | !#??????????????????????????????????????????? | | #######??????????????????????????????????????????? | | ?????????????????????????????????????????????????? | | ?????????????????????????????????????????????????? | | ?????????????????????????????????????????????????? | | ?????????????????????????????????????????????????? | | ?????????????????????????????????????????????????? | | | | | | | | | | | | | | | +----------------------------------------------------+ Best States ------------- Heat Dissipation 31 Energy Generation 14 Energy Capacity 250 Matter Stores 300 Matter Capacity 300 Sight Range 16 Terrain Scan Density 10 Evasion (%) 42 Targeting Accuracy 5 Recoil Reduction 2 Item Schematics ----------------- None Robot Schematics ------------------ None Fabricated ------------ Nothing Alien Tech Used ----------------- None Achievements -------------- None Challenges ------------ None Game ------ Seed FlakConcussiveSplitter Manual? 0 Play Time 00:18:18 Cumulative 86.3 hours Start 2024.05.08 @ 18:00:19 End 2024.05.08 @ 18:57:58 Sessions 5 Manual Loads 0 Difficulty Rogue Special Mode None Game No. 126 Rogue 121 Adventurer 5 Explorer 0 Win Type - Total 2 Types 1/0/0/1/0/0/0/0/0 Lore% 44 Gallery% 63 Achievement% 49 Wizard Run 0 Options --------- Layout 0 ASCII 0 Keyboard 0 Movement Mouse Keybinds 0 Fullscreen 1 Font 24/Smallcaps Map View 76x50 Zoom Use 34% Tactical HUD 1 Map Filters NONE Filters NONE Steam 1 RUN: 91654aad-cc3e-4832-a9b0-19ee074d068d